Cogmind - Beta 13 @@@ ROGUE MODE // 2024.04.10 @ 09:19:50 Player: JunkerBernd Result: Self-destructed Performance ------------- Evolutions (2) 1000 Regions Visited (5) 1000 Robots Destroyed (27) 135 Value Destroyed (588) 588 Prototype IDs (1) 20 Alien Tech Used (0) 0 Bonus (300) 300 TOTAL SCORE: 3043 Bonus ------- Aligned with FarCom 300 Cogmind --------- Core Integrity 550/550 Matter 40/400 Energy 140/140 System Corruption 0% Temperature Cool (9) Movement Treading (155) Location -8/Materials Parts ------- > --- POWER (1) -------- Light Deuterium Engine > --- PROPULSION (3) --- Light Treads Light Treads Advanced Treads > --- UTILITY (3) ------ Large Storage Unit Medium Matter Pod > --- WEAPON (4) ------- Grenade Launcher Grenade Launcher Grenade Launcher Rocket Launcher > --- INVENTORY (15) --- Light Deuterium Engine Light Deuterium Engine Light Treads Small Storage Unit Large Storage Unit Heavy Assault Rifle XL Autogun Array Peak State ------------ > --- POWER ------------ Light Deuterium Engine > --- PROPULSION ------- Light Treads Light Treads Advanced Treads > --- UTILITY ---------- Small Storage Unit Large Storage Unit Medium Matter Pod > --- WEAPON ----------- Grenade Launcher Grenade Launcher Grenade Launcher Rocket Launcher > --- INVENTORY -------- Light Deuterium Engine Light Deuterium Engine Light Treads Heavy Assault Rifle XL Autogun Array [Rating: 20] Favorites ----------- Power Heavy Ion Engine Engine Heavy Ion Engine Propulsion Light Treads Treads Light Treads Utility Small Storage Unit Storage Small Storage Unit Weapon Grenade Launcher Ballistic Gun Heavy Assault Rifle Launcher Grenade Launcher Build | -11 -10 -10 -10 -9 -8 ------- Run | Yrd Mat Min Exi Min Mat Slots Evolved 4 | . . . . . 4 Power . | . . . . . . Propulsion 1 | . . . . . 1 Utility 1 | . . . . . 1 Weapon 2 | . . . . . 2 Parts Attached 29 | 6 12 . 2 1 8 Power 3 | 1 1 . . . 1 Engine 3 | 1 1 . . . 1 Core . | . . . . . . Reactor . | . . . . . . Propulsion 5 | 2 1 . . . 2 Treads 5 | 2 1 . . . 2 Leg . | . . . . . . Wheel . | . . . . . . Hover . | . . . . . . Flight . | . . . . . . Utility 3 | 1 1 . . . 1 Device . | . . . . . . Storage 3 | 1 1 . . . 1 Processor . | . . . . . . Hackware . | . . . . . . Protection . | . . . . . . Artifact . | . . . . . . Weapon 18 | 2 9 . 2 1 4 Energy Gun . | . . . . . . Energy Cannon . | . . . . . . Ballistic Gun 8 | 2 6 . . . . Ballistic Cannon . | . . . . . . Launcher 10 | . 3 . 2 1 4 Special Weapon . | . . . . . . Impact Weapon . | . . . . . . Slashing Weapon . | . . . . . . Piercing Weapon . | . . . . . . Special Melee Weapon . | . . . . . . Unidentified Prototypes 1 | . 1 . . . . Parts Lost . | . . . . . . Power . | . . . . . . Propulsion . | . . . . . . Utility . | . . . . . . Weapon . | . . . . . . Highest Loss Streak . | . . . . . . To Critical Strikes . | . . . . . . Average Slot Usage (%) 95 | . 92 100 97 100 88 Engine 13 | . 14 14 14 14 9 Treads 27 | . 27 28 28 28 25 Storage 24 | . 21 28 28 28 18 Ballistic Gun 6 | . 24 . . . . Launcher 21 | . 3 28 25 28 35 Naked Turns . | . . . . . . Heaviest Build 40 | 13 21 21 21 22 40 Greatest Support 62 | 40 40 40 40 40 62 Greatest Overweight (x) 1 | 1 1 . . . . Average Overweight (x) . | . . . . . . Largest Inventory Capacity 15 | 8 8 8 8 8 15 Average Capacity 8 | 7 8 8 8 8 8 Most Carried 10 | 6 8 8 8 8 10 Average Carried 7 | 3 7 7 7 7 7 Final Capacity 15 | 8 8 8 8 8 15 Final Carried 10 | 6 8 8 8 8 10 Class Distribution -------------------- 83% | Mutant 16% | Skirmisher Dominant Class ---------------- Mutant | -10/Materials Mutant | -10/Mines Mutant | -10/Exiles Mutant | -9/Mines Skirmisher | -8/Materials Resources | -11 -10 -10 -10 -9 -8 ----------- Run | Yrd Mat Min Exi Min Mat Matter Collected 546 | 236 136 54 . 58 62 Remotely . | . . . . . . Salvage Created 407 | . 204 18 . 71 114 Parts 34 | . 14 5 . 5 10 Haulers Intercepted 1 | . . . . . 1 Recyclers Shooed 2 | . 1 . . 1 . Parts Field Recycled . | . . . . . . Retrieved Matter . | . . . . . . Parts Self-Destructed . | . . . . . . Prevented . | . . . . . . Kills | -11 -10 -10 -10 -9 -8 ------- Run | Yrd Mat Min Exi Min Mat Combat Hostiles Destroyed 16 | . 3 3 . 6 4 Guns 1 | . 1 . . . . AOE 15 | . 2 3 . 6 4 Classes Destroyed 10 | . 6 1 . . 3 Worker 3 | . 1 . . . 2 Builder 1 | . . . . . 1 Tunneler 1 | . 1 . . . . Hauler 1 | . . . . . 1 Recycler 1 | . 1 . . . . Operator 1 | . 1 . . . . Watcher 3 | . 2 . . . 1 Swarmer 7 | . . 3 . 4 . Grunt 8 | . 3 . . 2 3 Sentry 1 | . . . . . 1 Best Kill Streak 4 | . 4 3 . 4 4 Combat Bots Only 4 | . 2 3 . 4 3 Max Kills in Single Turn 3 | . 2 2 . 2 3 Gunslinging . | . . . . . . Exploded 2 | . 1 2 . 2 2 Melee . | . . . . . . Uniques/NPCs Destroyed . | . . . . . . Combat | -11 -10 -10 -10 -9 -8 -------- Run | Yrd Mat Min Exi Min Mat Hostile Shots Fired 40 | . 5 5 . 14 16 Missed 8 | . . . . 1 7 Damage Taken 428 | . 73 71 . 136 148 Core 42 | . . 42 . . . Absorbed by Shields . | . . . . . . Core Remaining (%) 91 | 100 . . . 83 . Volleys Fired 21 | . 9 2 . 4 6 Largest 4 | . 2 2 . 2 4 Hottest 123 | . 60 60 . 63 123 Shots Fired 51 | . 18 4 . 8 21 Gun 8 | . 8 . . . . Cannon . | . . . . . . Launcher 43 | . 10 4 . 8 21 Special . | . . . . . . Kinetic 8 | . 8 . . . . Thermal . | . . . . . . Explosive 43 | . 10 4 . 8 21 Electromagnetic . | . . . . . . Robot Hit Streak 7 | . 7 3 . 2 5 Robot Miss Streak 3 | . 3 1 . 2 2 Penetration Max . | . . . . . . Secondary Targets . | . . . . . . Shots Hit Robots 26 | . 11 3 . 3 9 Core Hits 46 | . 12 3 . 9 22 Critical Kills . | . . . . . . Critical Parts Destroyed . | . . . . . . Critical Strikes . | . . . . . . Melee Attacks . | . . . . . . Impact . | . . . . . . Slashing . | . . . . . . Piercing . | . . . . . . Sneak Attacks . | . . . . . . Combat Hostiles . | . . . . . . Follow-up Attacks . | . . . . . . Damage Inflicted 1968 | . 467 236 . 371 894 Guns 63 | . 63 . . . . Cannons . | . . . . . . Explosions 1888 | . 397 230 . 367 894 Melee . | . . . . . . Ramming 17 | . 7 6 . 4 . Kinetic 63 | . 63 . . . . Thermal . | . . . . . . Explosive 1888 | . 397 230 . 367 894 Electromagnetic . | . . . . . . Impact . | . . . . . . Slashing . | . . . . . . Piercing . | . . . . . . Highest Corruption . | . . . . . . Average Corruption . | . . . . . . Corruption Purged . | . . . . . . Corruption Blocked . | . . . . . . Overload Shots . | . . . . . . Overflow Damage 35 | . 12 6 . 6 11 Projectiles . | . . . . . . Explosions 35 | . 12 6 . 6 11 Melee . | . . . . . . Knockbacks . | . . . . . . Impact . | . . . . . . Kinetic . | . . . . . . Secondary . | . . . . . . Self-Inflicted Damage 49 | . . 35 . 4 10 Shots 3 | . . 1 . 1 1 Rammed 7 | . 3 2 . 2 . Targets Rammed 8 | . 4 2 . 2 . Kicked . | . . . . . . Crushed 1 | . 1 . . . . Highest Temperature 89 | . 24 6 . 42 89 Average Temperature 19 | . 7 3 . 15 34 Received Heat Transfer 153 | . 42 . . 48 63 Siege Activations . | . . . . . . Robots Corrupted . | . . . . . . Combat Hostiles . | . . . . . . Parts Fried . | . . . . . . Impact Corruptions . | . . . . . . Robots Melted . | . . . . . . Combat Hostiles . | . . . . . . Parts Melted . | . . . . . . Heat Transferred . | . . . . . . Parts Sabotaged . | . . . . . . Parts Stolen . | . . . . . . Parts Stripped . | . . . . . . Power Chain Reactions . | . . . . . . Alert | -11 -10 -10 -10 -9 -8 ------- Run | Yrd Mat Min Exi Min Mat Peak Influence 290 | . 151 180 . 196 290 Initial 58 | . . 58 . . . Average 67 | . 33 135 . 34 119 Maximum Alert Level 1 | . . . . . 1 Low Security (%) 92 | 100 100 100 . 100 62 Level 1 7 | . . . . . 37 Level 2 . | . . . . . . Level 3 . | . . . . . . Level 4 . | . . . . . . Level 5 . | . . . . . . High Security . | . . . . . . Max Security . | . . . . . . Squads Dispatched 3 | . 1 . . . 2 Investigation . | . . . . . . Extermination . | . . . . . . Reinforcement 3 | . 1 . . . 2 Assault . | . . . . . . Garrison . | . . . . . . Intercept . | . . . . . . Searches Triggered . | . . . . . . Construction Impeded 1 | . . . . . 1 Haulers Reinforced . | . . . . . . Active Scanning Responses . | . . . . . . Cargo Convoy Interrupts . | . . . . . . Stealth | -11 -10 -10 -10 -9 -8 --------- Run | Yrd Mat Min Exi Min Mat Distress Signals 1 | . . . . . 1 Communications Jammed . | . . . . . . Distress Signals . | . . . . . . Times Spotted 27 | . 9 3 . 6 9 Peak Tracking Total 4 | . 2 3 . 4 3 Tactical Retreats 1 | . . . . . 1 Traps | -11 -10 -10 -10 -9 -8 ------- Run | Yrd Mat Min Exi Min Mat Traps Triggered 2 | . 2 . . . . Indirectly . | . . . . . . Trap Hack Attempts . | . . . . . . Triggered . | . . . . . . Disarmed . | . . . . . . Reprogrammed . | . . . . . . Reused . | . . . . . . Traps Extracted . | . . . . . . Installed . | . . . . . . Triggered . | . . . . . . Most Traps Carried 2 | . . 2 1 . . Machines | -11 -10 -10 -10 -9 -8 ---------- Run | Yrd Mat Min Exi Min Mat Machines Disabled 5 | . 2 1 . 1 1 Max in Single Turn 1 | . 1 1 . 1 1 Machines Repaired . | . . . . . . Machines Dismantled . | . . . . . . Machines Sabotaged . | . . . . . . Overloaded Fab Kills . | . . . . . . Hacking | -11 -10 -10 -10 -9 -8 --------- Run | Yrd Mat Min Exi Min Mat Machines Accessed 3 | . 1 . . . 2 Terminals 1 | . . . . . 1 Fabricators . | . . . . . . Repair Stations 1 | . . . . . 1 Recycling Units 1 | . 1 . . . . Scanalyzers . | . . . . . . Garrison Access . | . . . . . . Total Hacks 9 | . 4 . . . 5 Successful 6 | . 3 . . . 3 Failed 3 | . 1 . . . 2 Catastrophic . | . . . . . . Database Lockouts . | . . . . . . Manual 1 | . . . 1 . . Terminals 4 | . . . . . 4 Fabricators . | . . . . . . Repair Stations 1 | . . . . . 1 Recycling Units 4 | . 4 . . . . Scanalyzers . | . . . . . . Garrison Access . | . . . . . . Terminal Hacks 3 | . . . . . 3 Record 1 | . . . . . 1 Recall Reinforcements 1 | . . . . . 1 Registered Components 1 | . . . . . 1 Fabricator Hacks . | . . . . . . Repair Station Hacks . | . . . . . . Recycling Unit Hacks 3 | . 3 . . . . Recycle Component 1 | . 1 . . . . Process 1 | . 1 . . . . Retrieve Matter 1 | . 1 . . . . Scanalyzer . | . . . . . . Garrison Access Hacks . | . . . . . . Unauthorized Hacks . | . . . . . . Terminals . | . . . . . . Fabricators . | . . . . . . Repair Stations . | . . . . . . Recycling Units . | . . . . . . Scanalyzers . | . . . . . . Garrison Access . | . . . . . . Data Cores Recovered . | . . . . . . Used . | . . . . . . Hacking Detections 3 | . 1 . . . 2 Full Trace Events . | . . . . . . Feedback Events . | . . . . . . Feedback Blocked . | . . . . . . Robot Schematics Acquired . | . . . . . . Robots Built . | . . . . . . Authchips . | . . . . . . Time . | . . . . . . Total Robot Build Rating . | . . . . . . Part Schematics Acquired . | . . . . . . Parts Built . | . . . . . . Authchips . | . . . . . . Time . | . . . . . . Total Part Build Rating . | . . . . . . Parts Repaired . | . . . . . . Time . | . . . . . . Parts Recycled 1 | . 1 . . . . Recycled Matter 199 | . 199 . . . . Retrieved Matter 199 | . 199 . . . . Retrieved Components . | . . . . . . Parts Scanalyzed . | . . . . . . Part Schematics Acquired . | . . . . . . Parts Damaged . | . . . . . . Bothacking | -11 -10 -10 -10 -9 -8 ------------ Run | Yrd Mat Min Exi Min Mat Used RIF Installer . | . . . . . . Robots Hacked . | . . . . . . Non-combat . | . . . . . . Combat . | . . . . . . Robot Hacks Applied . | . . . . . . Relay Couplers Released . | . . . . . . Fabnet Peak Effective % . | . . . . . . Robots Rewired . | . . . . . . Allies Hacked . | . . . . . . Hacks Repelled . | . . . . . . Allies | -11 -10 -10 -10 -9 -8 -------- Run | Yrd Mat Min Exi Min Mat Total Allies . | . . . . . . Largest Group . | . . . . . . Highest-Rated Group . | . . . . . . Highest-Rated Ally . | . . . . . . Total Orders . | . . . . . . Ally Attacks . | . . . . . . Total Damage . | . . . . . . Kills . | . . . . . . Allies Corrupted . | . . . . . . Allies Melted . | . . . . . . Intel | -11 -10 -10 -10 -9 -8 ------- Run | Yrd Mat Min Exi Min Mat Robot Analysis Total . | . . . . . . Derelict Logs Recovered . | . . . . . . Drone Launches . | . . . . . . Drone Recoveries . | . . . . . . Exploration | -11 -10 -10 -10 -9 -8 ------------- Run | Yrd Mat Min Exi Min Mat Turns Passed 2163 | 90 588 301 385 429 370 Spaces Moved 1242 | 50 327 180 236 257 192 Core 4 | 4 . . . . . Treads 1238 | 46 327 180 236 257 192 Legs . | . . . . . . Wheels . | . . . . . . Hover . | . . . . . . Flight . | . . . . . . Fastest Speed 50 | 50 160 160 160 160 155 Average Speed 159 | 152 160 160 160 160 155 Slowest Speed 240 | 160 240 160 160 160 160 Overloaded Moves . | . . . . . . Propulsion Burnouts . | . . . . . . Robots Hopped . | . . . . . . Cave-ins Triggered . | . . . . . . Exploration Rate (%) 37 | 4 51 41 60 56 15 Regions Visited 5 Branch Regions 3 Pre-discovered Areas . | . . . . . . Known Exits Taken . | . . . . . . Unknown Exits Taken 5 | 1 1 1 1 1 . Scrap Searched 1 | . . 1 . . . Spaces Dug . | . . . . . . Terrain Destroyed 253 | . 43 29 . 53 128 Melee . | . . . . . . Projectile . | . . . . . . AOE 253 | . 43 29 . 53 128 Terrain Rammed . | . . . . . . Walls Destroyed . | . . . . . . Machines Disabled . | . . . . . . Actions | -11 -10 -10 -10 -9 -8 --------- Run | Yrd Mat Min Exi Min Mat Total 1379 | 61 368 189 246 266 249 Wait 39 | . 4 . . 1 34 Move 1237 | 49 326 179 235 256 192 Hop . | . . . . . . Pick Up 22 | 6 7 3 2 1 3 Fast Attach 18 | 6 5 . 2 . 5 Attach 2 | . . . . . 2 Detach 2 | . . . . . 2 Swap 9 | . 7 . . 1 1 Drop 21 | . 6 3 7 1 4 Fire 21 | . 9 2 . 4 6 Melee . | . . . . . . Ram . | . . . . . . Kick . | . . . . . . Crush 8 | . 4 2 . 2 . Escape Stasis . | . . . . . . Rewire . | . . . . . . Trap . | . . . . . . Miscellaneous . | . . . . . . Route ------- -11/Scrapyard -10/Materials (discovered 2 exits: [*Mat] / [*Min]) -10/Mines (discovered 2 exits: [*Mat] / *Exi) -10/Exiles -9/Mines -8/Materials History --------- Turn | Location | Event 20 | -11/Scrapyard | Discovered new exit (range 15) 91 | -11/Scrapyard | Entered Materials 308 | -10/Materials | Build established: Mutant 416 | -10/Materials | Discovered new exit (range 5) 488 | -10/Materials | Discovered new exit (range 6) 679 | -10/Materials | Entered Mines 726 | -10/Mines | Found a hidden stash of uninstalled traps 935 | -10/Mines | Discovered new exit (range 9) 944 | -10/Mines | YI-UF0 nonchalantly dropped a Grenade Launcher on the ground 972 | -10/Mines | Deemed a non-threat by the Exiles lab entrance 973 | -10/Mines | Discovered new exit (range 5) 980 | -10/Mines | Entered Exiles 1019 | -10/Exiles | Met 8R-AWN 1046 | -10/Exiles | Met EX-HEX 1089 | -10/Exiles | Met EX-BIN 1108 | -10/Exiles | Aligned with FarCom system 1110 | -10/Exiles | Given EX-Vault access code 1152 | -10/Exiles | Opened EX-Vault 1175 | -10/Exiles | Found Prototype Ballistic Gun 1196 | -10/Exiles | Found Prototype Ballistic Gun 1243 | -10/Exiles | Warned to stay clear of 0b10 Research branches 1295 | -10/Exiles | Met EX-DEC 1351 | -10/Exiles | Discovered new exit (range 10) 1365 | -10/Exiles | Left Exiles lab with XL Autogun Array 1365 | -10/Exiles | Entered Mines 1707 | -9/Mines | Received a Rocket Launcher from a helpful Derelict 1772 | -9/Mines | Discovered new exit (range 11) 1794 | -9/Mines | Entered Materials 1794 | -8/Materials | Evolved 4 slots: Propulsion x1, Utility x1, Weapon x2 2106 | -8/Materials | Build established: Skirmisher 2164 | -8/Materials | Self-destructed Last Messages --------------- K-01 Serf collects debris. U-05 Engineer builds a Wall. U-05 Engineer lays Concrete. U-05 Engineer builds a Wall. K-01 Serf collects debris. U-05 Engineer lays Concrete. K-01 Serf collects debris. U-05 Engineer builds a Wall. U-05 Engineer lays Concrete. U-05 Engineer builds a Wall. K-01 Serf collects debris. U-05 Engineer lays Concrete. U-05 Engineer builds a Wall. The unstable cave ceiling collapses. U-05 Engineer lays Concrete. U-05 Engineer builds a Wall. U-05 Engineer lays Concrete. U-05 Engineer builds a Wall. Acquired Lrg. Storage Unit. U-05 Engineer builds a Wall. Map ----- +----------------------------------------------------+ | | | | | | | | | | | | | | | | | | | ????## # ##???????????????????????????????????? | | ????# ## #???????????????????????????????????? | | ###### #???????????????????????????????????? | | # *# #???????????????????????????????????? | | # T [# #???????????????????????????????????? | | # ##???????????????????????????????????? | | # ##????????????????????????????????????? | | # #?????????????????????????????????????? | | # """ #?????????????????????????????????????? | | # """ ########???????????????????????????????? | | # """ ###! !##??????????????????????????????? | | # ##! !#??????????????######??????????? | | ## #????????##### #??????????? | | ### ### ######### ! #??????????? | | = #??????????? | | o ^ g # #??????????? | | = "T" @ #??????????? | | g####### #??????????? | | # #?????? # #??????????? | | # #??????? #???????????????? | | ## """ ^""" #??????? #???????????????? | | ## """ """ #????????" #???????????????? | | ## """ """ #????????"" #???????????????? | | + #?????????" #???????????????? | | #### #?????????" #???????????????? | | ???##+######## #???????????t#???????????????? | | ?????????????## ##????????????#???????????????? | | ??????????????# ??????????????????????????????? | | ??????????????# ??????????????????????????????? | | ??????????????# ??????????????????????????????? | | ??????????????# ??????????????????????????????? | | ??????????????? ??????????????????????????????? | | ????????????????????????????????????????????????? | | ????????????????????????????????????????????????? | | ????????????????????????????????????????????????? | | ????????????????????????????????????????????????? | | ????????????????????????????????????????????????? | | ????????????????????????????????????????????????? | | ????????????????????????????????????????????????? | | ????????????????????????????????????????????????? | | ????????????????????????????????????????????????? | +----------------------------------------------------+ Best States ------------- Heat Dissipation 31 Energy Generation 14 Energy Capacity 280 Matter Stores 400 Matter Capacity 400 Sight Range 16 Terrain Scan Density 10 Evasion (%) 40 Recoil Reduction 3 Item Schematics ----------------- None Robot Schematics ------------------ None Fabricated ------------ Nothing Alien Tech Used ----------------- None Achievements -------------- GoHome() Challenges ------------ None Game ------ Seed HeartXenonCoupler Manual? 0 Play Time 00:20:25 Cumulative 10.7 hours Start 2024.04.10 @ 09:01:39 End 2024.04.10 @ 09:19:50 Sessions 1 Manual Loads 0 Difficulty Rogue Special Mode None Game No. 21 Rogue 21 Adventurer 0 Explorer 0 Win Type - Total 0 Types 0/0/0/0/0/0/0/0/0 Lore% 15 Gallery% 13 Achievement% 16 Wizard Run 0 Options --------- Layout 0 ASCII 0 Keyboard 1 Movement Numpad Keybinds 0 Fullscreen 1 Font 18/SmallcapsGlow Map View 76x50 Zoom Use 0% Tactical HUD 0 Map Filters NONE Filters NONE Steam 1 RUN: 57c34309-0a92-40a4-8b4f-e272281e4258